fUSD/lending_fUSD_20250506
["ID","MTS","AMOUNT","RATE_DAILY","PERIOD"]
[360137218,1746563471426,-160.0,0.000281,26]
[360137219,1746563471436,-234.304538,0.000281,7]
[360137220,1746563471446,-151.0,0.000281,7]
[360137221,1746563471455,-347.226314,0.000281,7]
[360137222,1746563471464,-347.226314,0.000281,7]
[360137223,1746563471474,-4609.0,0.000282,2]
[360137224,1746563471484,-152.0,0.00028214,25]
[360137225,1746563471493,-263.72,0.00028218,2]
[360137226,1746563471503,-1000.0,0.00028266,2]
[360137227,1746563471513,-300.0,0.0002828,2]
[360137228,1746563471523,-974.54,0.00028287,2]
[360137229,1746563471532,-151.0,0.00028452,7]
[360137230,1746563471541,-1364.797221,0.00028493,4]
[360137231,1746563471551,-1580.2,0.000285,2]
[360137232,1746563471561,-153.478101,0.000285,7]
[360137233,1746563471570,-13860.75,0.000285,2]
[360137234,1746563471580,-1500.0,0.000285,2]
[360137235,1746563471589,-300.0,0.0002856,2]
[360137236,1746563471600,-152.0,0.00028571,26]
[360137237,1746563471609,-2832.16,0.00028685,15]
[360137238,1746563471619,-2832.16,0.00028685,15]
[360137239,1746563471629,-2832.16,0.00028685,15]
[360137240,1746563471638,-2832.16,0.00028685,15]
[360137241,1746563471648,-9560.41,0.00028767,2]
[360137242,1746563471658,-1065.32006898,0.000288,10]
[360137243,1746563471668,-867.51447378,0.000288,2]
[360137244,1746563471677,-300.0,0.0002884,2]
[360137245,1746563471686,-45133.73,0.000289,7]
[360137246,1746563471696,-152.0,0.00028929,27]
[360137247,1746563471706,-2832.16,0.00028959,15]
[360137248,1746563471715,-2832.16,0.00028959,15]
[360137249,1746563471724,-412.871,0.00028997,2]
[360137250,1746563471734,-908.0,0.00028997,2]
[360137251,1746563471744,-1447.0,0.00028997,2]
[360137252,1746563471753,-717.528,0.00028997,2]
[360137253,1746563471763,-6764.0,0.00028997,2]
[360137254,1746563471772,-4015.0,0.00028997,2]
[360137255,1746563471782,-604.299,0.00028997,2]
[360137256,1746563471791,-1301.0,0.00028997,2]
[360137257,1746563471801,-75151.24334948,0.00029,2]
[360137258,1746563471811,-260.4189744,0.00029,2]
[360137259,1746563471822,-11530.26707186,0.00029,2]
[360137260,1746563471831,-5165.7417461,0.00029,2]
[360137261,1746563471840,-1391.40983245,0.00029,10]
[360137262,1746563471850,-53318.47472287,0.00029,2]
[360137263,1746563471859,-1055.55197399,0.00029,15]
[360137264,1746563471869,-41367.10145707,0.00029,2]
[360137265,1746563471879,-1000.0,0.00029,2]
[360137266,1746563471888,-10000.96563711,0.00029,6]
[360137267,1746563471898,-3000.0,0.00029,2]
[360137268,1746563471907,-999.999999,0.00029,5]
[360137269,1746563471917,-550.0,0.00029,2]
[360137270,1746563471927,-151.0,0.00029,7]
[360137271,1746563471936,-303.035294,0.00029,7]
[360137272,1746563471948,-303.035294,0.00029,7]
[360137273,1746563471957,-151.0,0.00029,7]
[360137274,1746563471966,-151.0,0.00029,7]
[360137275,1746563471976,-413.012657,0.00029,7]
[360137276,1746563471985,-413.012657,0.00029,7]
[360137277,1746563471995,-134637.39839553,0.00029,2]
[360137278,1746563472005,-1500.0,0.00029,2]
[360137279,1746563472014,-200.0,0.00029,2]
[360137280,1746563472023,-2000.0,0.00029,4]
[360137281,1746563472034,-250.0,0.000291,7]
[360137282,1746563472044,-160.0,0.000291,29]
[360137283,1746563472053,-300.0,0.0002912,2]
[360137284,1746563472063,-1098.92626521,0.00029204,2]
[360137285,1746563472072,-2832.16,0.00029233,15]
[360137286,1746563472082,-2832.16,0.00029233,15]
[360137287,1746563472091,-152.0,0.00029286,28]
[360137288,1746563472101,-500.0,0.00029342,2]
[360137289,1746563472111,-5000.0,0.00029368,5]
[360137290,1746563472121,-1017.7989759,0.000294,2]
[360137291,1746563472130,-1061.99533526,0.000294,2]
[360137292,1746563472139,-1071.58311124,0.000294,2]
[360137293,1746563472149,-237.0,0.000294,4]
[360137294,1746563472159,-267.46074303,0.00029403,2]
[360137295,1746563472168,-319.2166033,0.00029499,2]
[360137296,1746563472178,-10062.62269365,0.000295,2]
[360137297,1746563472187,-2000.0,0.000295,2]
[360137298,1746563472196,-1500.0,0.000295,2]
[360137299,1746563472205,-2832.16,0.00029507,15]
[360137300,1746563472214,-2832.16,0.00029507,15]
[360137301,1746563472224,-1000.82244894,0.00029534,2]
[360137302,1746563472233,-15798.62795702,0.00029555,2]
[360137303,1746563472244,-263.72,0.00029588,2]
[360137304,1746563472253,-154.94330904,0.000296,7]
[360137305,1746563472263,-152.0,0.00029643,29]
[360137306,1746563472273,-38382.76,0.000297,2]
[360137307,1746563472282,-5000.0,0.00029771,10]
[360137308,1746563472291,-2832.16,0.00029781,15]
[360137309,1746563472300,-2832.16,0.00029781,15]
[360137310,1746563472309,-460.5,0.00029794,15]
[360137311,1746563472318,-13860.75,0.000298,2]
[360137312,1746563472327,-2000.0,0.0002985,2]
[360137313,1746563472338,-2001.2167,0.0002985,2]
[360137314,1746563472347,-2000.0,0.0002985,2]
[360137315,1746563472356,-2000.0,0.0002985,2]
[360137316,1746563472365,-2000.0,0.0002985,2]
[360137317,1746563472374,-987.4049,0.0002985,2]
[360137318,1746563472383,-188.64918891,0.000299,2]
[360137319,1746563472392,-500.0,0.0002997,2]
[360137320,1746563472402,-500.0,0.0002997,2]
[360137321,1746563472411,-500.0,0.0002997,2]
[360137322,1746563472421,-500.0,0.0002997,2]
[360137323,1746563472430,-1000.0,0.0002997,2]
[360137324,1746563472439,-1000.0,0.0002997,2]
[360137325,1746563472449,-1000.0,0.0002997,2]
[360137326,1746563472459,-1000.0,0.0002997,2]
[360137327,1746563472468,-1000.0,0.0002997,2]
[360137328,1746563472477,-500.0,0.0002997,2]
[360137329,1746563472487,-1000.0,0.0002997,2]
[360137330,1746563472498,-500.0,0.0002997,2]
[360137331,1746563472508,-1000.0,0.0002997,2]
[360137332,1746563472517,-500.0,0.0002997,2]
[360137333,1746563472527,-1000.0,0.0002997,2]
[360137334,1746563472536,-888.06386478,0.0002997,2]
[360137335,1746563472546,-1000.0,0.0002997,2]
[360137336,1746563472555,-1000.0,0.0002997,2]
[360137337,1746563472564,-1916.88279504,0.0002997,2]
[360137338,1746563472574,-5000.0,0.00029978,10]
[360137339,1746563472583,-460.0,0.0002998,2]
[360137340,1746563472593,-229.35411831,0.0002999,2]
[360137341,1746563472602,-85729.02626126,0.00029999,2]
[360137342,1746563472611,-1549.14347637,0.0003,2]
[360137343,1746563472620,-19207.1333834,0.0003,2]
[360137344,1746563472630,-10259.75328108,0.0003,2]
[360137345,1746563472639,-450.57198943,0.0003,2]
[360137346,1746563472649,-1754.24929826,0.0003,2]
[360137347,1746563472658,-160.95767796,0.0003,2]
[360137348,1746563472667,-1069.91315102,0.0003,2]
[360137349,1746563472677,-771.13235883,0.0003,7]
[360137350,1746563472686,-4437.54855121,0.0003,2]
[360137351,1746563472696,-1049.66670421,0.0003,10]
[360137352,1746563472706,-8770.0,0.0003,14]
[360137353,1746563472715,-10000.0,0.0003,10]
[360137354,1746563472724,-216.16,0.0003,7]
[360137355,1746563472734,-12000.0,0.0003,2]
[360137356,1746563472745,-7131.17049492,0.0003,2]
[360137357,1746563472755,-160.0,0.0003,2]
[360137358,1746563472764,-2150.6850807,0.0003,2]
[360137359,1746563472774,-5310.0,0.0003,6]
[360137360,1746563472783,-500.0,0.0003,7]
[360137361,1746563472793,-258.0,0.0003,2]
[360137362,1746563472803,-879.73394257,0.0003,7]
[360137363,1746563472813,-39777.04384031,0.0003,5]
[360137364,1746563472822,-249656.36044228,0.0003,7]
[360137365,1746563472831,-500.0,0.0003,2]
[360137366,1746563472843,-3567.51514625,0.0003,12]
[360137367,1746563472852,-9254.01537755,0.0003,2]
[360137368,1746563472861,-1073.27389819,0.0003,2]
[360137369,1746563472871,-2761.42,0.0003,2]
[360137370,1746563472881,-276.53309244,0.0003,5]
[360137371,1746563472891,-1020.45,0.0003,2]
[360137372,1746563472900,-12000.0,0.0003,5]
[360137373,1746563472910,-293.71801786,0.0003,11]
[360137374,1746563472919,-159.0,0.0003,22]
[360137375,1746563472929,-1500.0,0.0003,2]
[360137376,1746563472938,-200.0,0.0003,2]
[360137377,1746563472950,-213.0,0.0003,2]
[360137378,1746563472960,-2832.16,0.00030055,15]
[360137379,1746563472970,-2832.16,0.00030055,15]
[360137380,1746563472979,-2908.24050719,0.000301,5]
[360137381,1746563472991,-160.0,0.000301,32]
[360137382,1746563473001,-2000.0,0.000301,2]
[360137383,1746563473010,-12059.23,0.0003011,2]
[360137384,1746563473021,-3729.96473069,0.0003013,2]
[360137385,1746563473031,-150.0,0.00030136,2]
[360137386,1746563473040,-600.0,0.00030137,2]
[360137387,1746563473049,-150.0,0.00030137,2]
[360137388,1746563473059,-401.26878826,0.00030137,2]
[360137389,1746563473068,-9560.41,0.00030137,2]
[360137390,1746563473078,-2999.41705448,0.00030137,120]
[360137391,1746563473087,-175.0,0.00030137,2]
[360137392,1746563473096,-200.0,0.00030137,2]
[360137393,1746563473105,-1477.0,0.00030137,120]
[360137394,1746563473114,-200.0,0.00030137,2]
[360137395,1746563473123,-500.0,0.00030137,7]
[360137396,1746563473132,-500.0,0.00030137,7]
[360137397,1746563473142,-500.0,0.00030137,7]
[360137398,1746563473151,-500.0,0.00030137,7]
[360137399,1746563473160,-500.0,0.00030137,7]
[360137400,1746563473169,-500.0,0.00030137,7]
[360137401,1746563473179,-500.0,0.00030137,7]
[360137402,1746563473188,-500.0,0.00030137,7]
[360137403,1746563473197,-500.0,0.00030137,7]
[360137404,1746563473206,-500.0,0.00030137,7]
[360137405,1746563473216,-500.0,0.00030137,7]
[360137406,1746563473225,-500.0,0.00030137,7]
[360137407,1746563473234,-500.0,0.00030137,7]
[360137408,1746563473244,-500.0,0.00030137,7]
[360137409,1746563473253,-500.0,0.00030137,7]
[360137410,1746563473263,-500.0,0.00030137,7]
[360137411,1746563473272,-500.0,0.00030137,7]
[360137412,1746563473281,-523.97500851,0.00030137,7]
[360137413,1746563473290,-397.83172944,0.00030137,2]
[360137414,1746563473299,-200.0,0.00030137,2]
[360137415,1746563473308,-484.264503,0.00030137,7]
[360137416,1746563473317,-1400.0,0.00030137,7]
[360137417,1746563473326,-500.0,0.00030137,7]
[360137418,1746563473335,-500.0,0.00030137,7]
[360137419,1746563473345,-502.00244069,0.00030137,7]
[360137420,1746563473354,-1400.0,0.00030137,7]
[360137421,1746563473364,-500.0,0.00030137,7]
[360137422,1746563473373,-663.35874804,0.00030137,7]
[360137423,1746563473383,-500.0,0.00030137,7]
[360137424,1746563473393,-500.0,0.00030137,7]
[360137425,1746563473402,-500.0,0.00030137,7]
[360137426,1746563473412,-405.26991494,0.00030137,7]
[360137427,1746563473421,-1400.0,0.00030137,7]
[360137428,1746563473431,-500.0,0.00030137,7]
[360137429,1746563473440,-1400.0,0.00030137,7]
[360137430,1746563473451,-1400.0,0.00030137,7]
[360137431,1746563473460,-500.0,0.00030137,7]
[360137432,1746563473470,-1400.0,0.00030137,7]
[360137433,1746563473612,-500.0,0.00030137,7]
[360137434,1746563473623,-500.0,0.00030137,7]
[360137435,1746563473633,-500.0,0.00030137,7]
[360137436,1746563473642,-1400.0,0.00030137,7]
[360137437,1746563473652,-500.0,0.00030137,7]
[360137438,1746563473662,-500.0,0.00030137,7]
[360137439,1746563473672,-1400.0,0.00030137,7]
[360137440,1746563473682,-500.0,0.00030137,7]
[360137441,1746563473693,-500.0,0.00030137,7]
[360137442,1746563473704,-512.10795835,0.00030137,7]
[360137443,1746563473714,-577.62346567,0.00030137,7]
[360137444,1746563473725,-500.0,0.00030137,7]
[360137445,1746563473735,-1400.0,0.00030137,7]
[360137446,1746563473747,-519.55305609,0.00030137,7]
[360137447,1746563473757,-561.63565708,0.00030137,7]
[360137448,1746563473768,-500.0,0.00030137,7]
[360137449,1746563473779,-1400.0,0.00030137,7]
[360137450,1746563473790,-500.0,0.00030137,7]
[360137451,1746563473801,-500.0,0.00030137,7]
[360137452,1746563473811,-500.0,0.00030137,7]
[360137453,1746563473822,-500.0,0.00030137,7]
[360137454,1746563473832,-1400.0,0.00030137,7]
[360137455,1746563473842,-500.0,0.00030137,7]
[360137456,1746563473851,-500.0,0.00030137,7]
[360137457,1746563473861,-1400.0,0.00030137,7]
[360137458,1746563473871,-500.0,0.00030137,7]
[360137459,1746563473880,-512.75304274,0.00030137,7]
[360137460,1746563473890,-1400.0,0.00030137,7]
[360137461,1746563473900,-500.0,0.00030137,7]
[360137462,1746563473909,-1400.0,0.00030137,7]
[360137463,1746563473919,-500.0,0.00030137,7]
[360137464,1746563473928,-1400.0,0.00030137,7]
[360137465,1746563473938,-500.0,0.00030137,7]
[360137466,1746563473950,-500.0,0.00030137,7]
[360137467,1746563473959,-500.0,0.00030137,7]
[360137468,1746563473968,-500.0,0.00030137,7]
[360137469,1746563473978,-500.0,0.00030137,7]
[360137470,1746563473988,-500.0,0.00030137,7]
[360137471,1746563473999,-500.0,0.00030137,7]
[360137472,1746563474008,-1400.0,0.00030137,7]
[360137473,1746563474018,-500.0,0.00030137,7]
[360137474,1746563474028,-500.0,0.00030137,7]
[360137475,1746563474037,-500.0,0.00030137,7]
[360137476,1746563474047,-500.0,0.00030137,7]
[360137477,1746563474056,-500.0,0.00030137,7]
[360137478,1746563474066,-500.0,0.00030137,7]
[360137479,1746563474076,-1400.0,0.00030137,7]
[360137480,1746563474085,-500.0,0.00030137,7]
[360137481,1746563474095,-500.0,0.00030137,7]
[360137482,1746563474105,-1400.0,0.00030137,7]
[360137483,1746563474114,-407.50816418,0.00030137,7]
[360137484,1746563474124,-500.0,0.00030137,7]
[360137485,1746563474134,-500.0,0.00030137,7]
[360137486,1746563474143,-1400.0,0.00030137,7]
[360137487,1746563474153,-500.0,0.00030137,7]
[360137488,1746563474163,-500.0,0.00030137,7]
[360137489,1746563474172,-500.0,0.00030137,7]
[360137490,1746563474181,-500.0,0.00030137,7]
[360137491,1746563474190,-500.0,0.00030137,7]
[360137492,1746563474199,-1400.0,0.00030137,7]
[360137493,1746563474208,-500.0,0.00030137,7]
[360137494,1746563474217,-500.0,0.00030137,7]
[360137495,1746563474227,-500.0,0.00030137,7]
[360137496,1746563474236,-157.74688104,0.00030137,7]
[360137497,1746563474246,-500.0,0.00030137,7]
[360137498,1746563474255,-501.58412303,0.00030137,7]
[360137499,1746563474264,-1400.0,0.00030137,7]
[360137500,1746563474273,-500.0,0.00030137,7]
[360137501,1746563474282,-500.0,0.00030137,7]
[360137502,1746563474291,-500.0,0.00030137,7]
[360137503,1746563474300,-1400.0,0.00030137,7]
[360137504,1746563474309,-500.0,0.00030137,7]
[360137505,1746563474318,-500.0,0.00030137,7]
[360137506,1746563474327,-1400.0,0.00030137,7]
[360137507,1746563474336,-500.0,0.00030137,7]
[360137508,1746563474345,-500.0,0.00030137,7]
[360137509,1746563474354,-540.23933102,0.00030137,7]
[360137510,1746563474363,-500.0,0.00030137,7]
[360137511,1746563474373,-500.0,0.00030137,7]
[360137512,1746563474382,-550.85306035,0.00030137,7]
[360137513,1746563474391,-1400.0,0.00030137,7]
[360137514,1746563474401,-500.0,0.00030137,7]
[360137515,1746563474410,-500.0,0.00030137,7]
[360137516,1746563474420,-1400.0,0.00030137,7]
[360137517,1746563474431,-500.0,0.00030137,7]
[360137518,1746563474442,-500.0,0.00030137,7]
[360137519,1746563474453,-500.0,0.00030137,7]
[360137520,1746563474463,-500.0,0.00030137,7]
[360137521,1746563474472,-1400.0,0.00030137,7]
[360137522,1746563474482,-500.0,0.00030137,7]
[360137523,1746563474492,-500.0,0.00030137,7]
[360137524,1746563474501,-904.982416,0.00030137,7]
[360137525,1746563474511,-1400.0,0.00030137,7]
[360137526,1746563474520,-500.0,0.00030137,7]
[360137527,1746563474529,-500.0,0.00030137,7]
[360137528,1746563474538,-500.0,0.00030137,7]
[360137529,1746563474547,-500.0,0.00030137,7]
[360137530,1746563474557,-500.0,0.00030137,7]
[360137531,1746563474566,-1923.72261058,0.00030137,7]
[360137532,1746563474575,-500.0,0.00030137,7]
[360137533,1746563474586,-500.0,0.00030137,7]
[360137534,1746563474595,-500.0,0.00030137,7]
[360137535,1746563474605,-873.15089128,0.00030137,7]
[360137536,1746563474614,-500.0,0.00030137,7]
[360137537,1746563474623,-500.0,0.00030137,7]
[360137538,1746563474632,-368.29180202,0.00030137,7]
[360137539,1746563474642,-500.0,0.00030137,7]
[360137540,1746563474651,-500.0,0.00030137,7]
[360137541,1746563474660,-500.0,0.00030137,7]
[360137542,1746563474669,-500.0,0.00030137,7]
[360137543,1746563474678,-500.0,0.00030137,7]
[360137544,1746563474687,-500.0,0.00030137,7]
[360137545,1746563474696,-500.0,0.00030137,7]
[360137546,1746563474705,-500.0,0.00030137,7]
[360137547,1746563474715,-734.69751358,0.00030137,7]
[360137548,1746563474724,-500.0,0.00030137,7]
[360137549,1746563474734,-500.0,0.00030137,7]
[360137550,1746563474744,-500.0,0.00030137,7]
[360137551,1746563474753,-500.0,0.00030137,7]
[360137552,1746563474762,-500.0,0.00030137,7]
[360137553,1746563474772,-500.0,0.00030137,7]
[360137554,1746563474782,-500.0,0.00030137,7]
[360137555,1746563474791,-500.0,0.00030137,7]
[360137556,1746563474801,-500.0,0.00030137,7]
[360137557,1746563474810,-500.0,0.00030137,7]
[360137558,1746563474819,-500.0,0.00030137,7]
[360137559,1746563474829,-500.0,0.00030137,7]
[360137560,1746563474838,-500.0,0.00030137,7]
[360137561,1746563474849,-500.0,0.00030137,7]
[360137562,1746563474859,-500.0,0.00030137,7]
[360137563,1746563474868,-500.0,0.00030137,7]
[360137564,1746563474877,-500.0,0.00030137,7]
[360137565,1746563474886,-500.0,0.00030137,7]
[360137566,1746563474895,-500.0,0.00030137,7]
[360137567,1746563474906,-500.0,0.00030137,7]
[360137568,1746563474915,-500.0,0.00030137,7]
[360137569,1746563474926,-917.35123466,0.00030137,7]
[360137570,1746563474936,-500.0,0.00030137,7]
[360137571,1746563474948,-500.0,0.00030137,7]
[360137572,1746563474958,-500.0,0.00030137,7]
[360137573,1746563474968,-500.0,0.00030137,7]
[360137574,1746563474977,-676.18010805,0.00030137,7]
[360137575,1746563474987,-500.0,0.00030137,7]
[360137576,1746563474997,-500.0,0.00030137,7]
[360137577,1746563475007,-500.0,0.00030137,7]
[360137578,1746563475016,-500.0,0.00030137,7]
[360137579,1746563475027,-500.0,0.00030137,7]
[360137580,1746563475036,-500.0,0.00030137,7]
[360137581,1746563475045,-500.0,0.00030137,7]
[360137582,1746563475055,-500.0,0.00030137,7]
[360137583,1746563475064,-593.82369459,0.00030137,7]
[360137584,1746563475074,-150.0,0.00030137,30]
[360137585,1746563475083,-2000.0,0.00030137,2]
[360137586,1746563475092,-200.0,0.00030137,2]
[360137587,1746563475101,-45133.73,0.000303,7]
[360137588,1746563475111,-2832.16,0.00030329,15]
[360137589,1746563475120,-2832.16,0.00030329,15]
[360137590,1746563475129,-200.0,0.00030438,2]
[360137591,1746563475138,-200.0,0.00030438,2]
[360137592,1746563475147,-200.0,0.00030438,2]
[360137593,1746563475156,-200.0,0.00030438,2]
[360137594,1746563475166,-974.54,0.00030551,2]
[360137595,1746563475175,-324.28551514,0.00030583,14]
[360137596,1746563475184,-2832.16,0.00030603,15]
[360137597,1746563475193,-2832.16,0.00030603,15]
[360137598,1746563475202,-548.0,0.00030613,30]
[360137599,1746563475211,-200.0,0.00030743,2]
[360137600,1746563475220,-200.0,0.00030743,2]
[360137601,1746563475230,-200.0,0.00030743,2]
[360137602,1746563475239,-200.0,0.00030743,2]
[360137603,1746563475249,-277.35679052,0.00030772,2]
[360137604,1746563475259,-500.0,0.00030809,2]
[360137605,1746563475269,-6453.0,0.00030866,2]
[360137606,1746563475280,-2832.16,0.00030877,15]
[360137607,1746563475289,-2832.16,0.00030877,15]
[360137608,1746563475298,-150.0,0.0003093,2]
[360137609,1746563475309,-263.72,0.00030958,2]
[360137610,1746563475318,-329.18238472,0.00031,5]
[360137611,1746563475327,-1800.0,0.00031,32]
[360137612,1746563475336,-600.0,0.00031,2]
[360137613,1746563475345,-200.0,0.0003105,2]
[360137614,1746563475354,-200.0,0.0003105,2]
[360137615,1746563475363,-200.0,0.0003105,2]
[360137616,1746563475373,-200.0,0.0003105,2]
[360137617,1746563475382,-160.0,0.000311,35]
[360137618,1746563475391,-2832.16,0.00031151,15]
[360137619,1746563475400,-2832.16,0.00031151,15]
[360137620,1746563475409,-200.0,0.00031361,2]
[360137621,1746563475419,-200.0,0.00031361,2]
[360137622,1746563475428,-200.0,0.00031361,2]
[360137623,1746563475437,-200.0,0.00031361,2]
[360137624,1746563475447,-2832.16,0.00031425,15]
[360137625,1746563475456,-2832.16,0.00031425,15]
[360137626,1746563475465,-18932.46814149,0.0003143,4]
[360137627,1746563475474,-150.0,0.00031446,120]
[360137628,1746563475484,-38382.76,0.000315,2]
[360137629,1746563475495,-9560.41,0.00031507,2]
[360137630,1746563475503,-150.0,0.00031723,2]
[360137631,1746563475512,-508.99,0.000318,120]
[360137632,1746563475522,-12000.0,0.00031871,8]
[360137633,1746563475533,-500.0,0.00031925,120]
[360137634,1746563475543,-1333.0,0.00031945,120]
[360137635,1746563475553,-4813.98,0.00031997,2]
[360137636,1746563475562,-4015.0,0.00031997,2]
[360137637,1746563475571,-1534.2016265,0.00032,2]
[360137638,1746563475580,-2994.90786077,0.00032,60]
[360137639,1746563475589,-1800.0,0.00032,33]
[360137640,1746563475597,-377.41225169,0.00032,7]
[360137641,1746563475606,-13860.75,0.00032,2]
[360137642,1746563475615,-5558.0,0.00032,3]
[360137643,1746563475625,-160.0,0.000321,38]
[360137644,1746563475634,-508.99,0.000321,120]
[360137645,1746563475643,-287.61899177,0.00032141,2]
[360137646,1746563475652,-208.54,0.00032153,14]
[360137647,1746563475661,-222.42,0.00032153,7]
[360137648,1746563475670,-268.0,0.00032167,7]
[360137649,1746563475679,-2305.55693721,0.00032248,5]
[360137650,1746563475687,-1074.0,0.00032297,5]
[360137651,1746563475696,-500.0,0.000323,120]
[360137652,1746563475705,-263.72,0.00032328,2]
[360137653,1746563475715,-508.99,0.000324,120]
[360137654,1746563475724,-150.0,0.00032516,2]
[360137655,1746563475733,-1200.0,0.000326,2]
[360137656,1746563475742,-650.0,0.000326,2]
[360137657,1746563475752,-5570.0,0.000326,5]
[360137658,1746563475762,-508.99,0.000327,120]
[360137659,1746563475770,-215.0,0.00032743,14]
[360137660,1746563475780,-4660.25041987,0.000328,2]
[360137661,1746563475789,-974.54,0.00032814,2]
[360137662,1746563475798,-29994.17,0.0003287,2]
[360137663,1746563475807,-500.0,0.00032876,120]
[360137664,1746563475816,-500.0,0.00032876,120]
[360137665,1746563475825,-500.0,0.00032876,120]
[360137666,1746563475835,-500.0,0.00032876,120]
[360137667,1746563475843,-500.0,0.00032876,120]
[360137668,1746563475852,-500.0,0.00032876,120]
[360137669,1746563475861,-500.0,0.00032876,120]
[360137670,1746563475870,-500.0,0.00032876,120]
[360137671,1746563475880,-500.0,0.00032876,120]
[360137672,1746563475889,-500.0,0.00032876,120]
[360137673,1746563475898,-500.0,0.00032876,120]
[360137674,1746563475907,-500.0,0.00032876,120]
[360137675,1746563475917,-500.0,0.00032876,120]
[360137676,1746563475926,-500.0,0.00032876,120]
[360137677,1746563475935,-376.10280371,0.00032876,120]
[360137678,1746563475946,-1665.7,0.00032876,2]
[360137679,1746563475955,-1665.7,0.00032876,2]
[360137680,1746563475965,-1665.7,0.00032876,2]
[360137681,1746563475974,-1665.7,0.00032876,2]
[360137682,1746563475982,-1665.7,0.00032876,2]
[360137683,1746563475992,-1665.7,0.00032876,2]
[360137684,1746563476000,-1665.7,0.00032876,2]
[360137685,1746563476010,-1665.7,0.00032876,2]
[360137686,1746563476019,-1665.7,0.00032876,2]
[360137687,1746563476027,-1665.7,0.00032876,2]
[360137688,1746563476037,-1665.7,0.00032876,2]
[360137689,1746563476045,-1665.7,0.00032876,2]
[360137690,1746563476054,-1665.7,0.00032876,2]
[360137691,1746563476063,-1665.7,0.00032876,2]
[360137692,1746563476072,-1665.7,0.00032876,2]
[360137693,1746563476081,-1665.7,0.00032876,2]
[360137694,1746563476091,-1665.7,0.00032876,2]
[360137695,1746563476100,-1665.7,0.00032876,2]
[360137696,1746563476225,-1665.7,0.00032876,2]
[360137697,1746563476235,-1665.7,0.00032876,2]
[360137698,1746563476245,-1665.7,0.00032876,2]
[360137699,1746563476255,-1665.7,0.00032876,2]
[360137700,1746563476264,-1665.7,0.00032876,2]
[360137701,1746563476274,-1665.81338824,0.00032876,2]
[360137702,1746563476283,-300.0,0.00032876,2]
[360137703,1746563476292,-300.0,0.00032876,2]
[360137704,1746563476302,-300.0,0.00032876,2]
[360137705,1746563476311,-300.0,0.00032876,2]
[360137706,1746563476321,-300.0,0.00032876,2]
[360137707,1746563476331,-300.0,0.00032876,2]
[360137708,1746563476340,-300.0,0.00032876,2]
[360137709,1746563476349,-300.0,0.00032876,2]
[360137710,1746563476359,-300.0,0.00032876,2]
[360137711,1746563476368,-327.28359919,0.00032876,2]
[360137712,1746563476377,-432.83922809,0.00032876,2]
[360137713,1746563476386,-455.53975711,0.00032876,2]
[360137714,1746563476395,-429.82234439,0.00032876,2]
[360137715,1746563476405,-426.21216601,0.00032876,2]
[360137716,1746563476414,-421.99277833,0.00032876,2]
[360137717,1746563476424,-552.7427094,0.00032876,2]